bitfinex/quotes_BTCUSD_20250718
["timestamp","ask_amount","ask_price","bid_price","bid_amount"]
[1752844247846,0.43209204,119170.0,119160.0,0.22097944]
[1752844248061,0.44349313,119170.0,119160.0,0.22097944]
[1752844248483,0.44149313,119170.0,119160.0,0.22097944]
[1752844248696,0.43410204,119170.0,119160.0,0.22097944]
[1752844248912,0.42571109,119170.0,119160.0,0.22097944]
[1752844249123,0.41732028,119170.0,119160.0,0.22097944]
[1752844249336,0.41531028,119170.0,119160.0,0.22097944]
[1752844249625,0.41531028,119170.0,119160.0,0.75894259]
[1752844249883,0.18668,119170.0,119160.0,1.15964259]
[1752844250101,0.32952,119170.0,119160.0,1.15964259]
[1752844251034,0.32952,119170.0,119160.0,1.69760574]
[1752844251035,0.32852,119170.0,119160.0,1.69760574]
[1752844251246,0.32844,119170.0,119160.0,1.69760574]
[1752844251451,0.32744,119170.0,119160.0,0.62367944]
[1752844251653,0.14276,119170.0,119160.0,1.69960574]
[1752844251799,0.14276,119170.0,119160.0,1.70160574]
[1752844252400,0.00266608,119190.0,119180.0,0.20752538]
[1752844252625,0.00266608,119190.0,119180.0,0.77920853]
[1752844252854,0.14574608,119190.0,119180.0,1.15140853]
[1752844253061,0.14570608,119190.0,119180.0,1.15444853]
[1752844254548,0.14670608,119190.0,119180.0,1.15444853]
[1752844254758,0.14870608,119190.0,119180.0,1.15444853]
[1752844255008,0.14770608,119190.0,119180.0,1.15444853]
[1752844255225,0.14570608,119190.0,119180.0,1.15444853]
[1752844255428,0.14570608,119190.0,119180.0,1.15544853]
[1752844255852,0.14570608,119190.0,119180.0,1.16198017]
[1752844256981,0.00266608,119190.0,119180.0,1.69994332]
[1752844257214,0.00266608,119190.0,119180.0,1.16198017]
[1752844257424,0.00266608,119190.0,119180.0,1.24749045]
[1752844257669,0.00266608,119190.0,119180.0,1.7854536]
[1752844257898,0.00266608,119190.0,119180.0,1.7844536]
[1752844258129,0.00266608,119190.0,119180.0,1.9270536]
[1752844258348,0.00266608,119190.0,119180.0,1.9290536]
[1752844258787,0.00266608,119190.0,119180.0,1.38909045]
[1752844259020,0.00266608,119190.0,119180.0,1.39209045]
[1752844259229,0.00266608,119190.0,119180.0,1.9300536]
[1752844259444,0.00266608,119190.0,119180.0,1.9340536]
[1752844259872,0.00266608,119190.0,119180.0,1.39209045]
[1752844260114,0.00266608,119190.0,119180.0,1.25449045]
[1752844260335,0.00266608,119190.0,119180.0,1.7924536]
[1752844261212,1e-08,119190.0,119180.0,1.7924536]
[1752844263356,1e-08,119190.0,119180.0,0.7165273]
[1752844263564,1e-08,119190.0,119180.0,1.9350136]
[1752844264405,1e-08,119190.0,119180.0,1.39705045]
[1752844264823,1e-08,119190.0,119180.0,1.9350136]
[1752844265479,1e-08,119190.0,119180.0,1.7924536]
[1752844265716,1e-08,119190.0,119180.0,0.88702659]
[1752844265953,1e-08,119190.0,119180.0,1.96295289]
[1752844266205,1e-08,119190.0,119180.0,1.9350536]
[1752844267419,1e-08,119190.0,119180.0,1.97852196]
[1752844268408,0.0034,119210.0,119200.0,0.27129301]
[1752844268652,0.0034,119210.0,119200.0,1.57722959]
[1752844269149,0.0034,119210.0,119200.0,1.58026959]
[1752844269613,0.0034,119210.0,119200.0,1.5803194]
[1752844269849,0.0034,119210.0,119200.0,1.5853194]
[1752844270837,0.0034,119210.0,119200.0,0.3669131]
[1752844271049,0.0034,119210.0,119200.0,1.4398394]
[1752844271265,0.0034,119210.0,119200.0,1.4378394]
[1752844271524,0.0034,119210.0,119200.0,0.3639131]
[1752844271733,0.0034,119210.0,119200.0,1.52559902]
[1752844272164,1e-08,119210.0,119200.0,1.4398394]
[1752844272587,1e-08,119210.0,119200.0,1.4438394]
[1752844272752,1e-08,119210.0,119200.0,1.7838394]
[1752844273726,1e-08,119210.0,119200.0,1.7813994]
[1752844275018,1e-08,119210.0,119200.0,1.75423782]
[1752844276510,1e-08,119210.0,119200.0,1.22985546]
[1752844276700,1e-08,119210.0,119200.0,1.75423782]
[1752844277105,1e-08,119210.0,119200.0,1.89723782]
[1752844277884,1e-08,119210.0,119200.0,0.8484731]
[1752844278094,1e-08,119210.0,119200.0,1.89723782]
[1752844278305,1e-08,119210.0,119200.0,0.8484731]
[1752844278693,1e-08,119210.0,119200.0,1.89723782]
[1752844278868,1e-08,119210.0,119200.0,0.8484731]
[1752844279309,1e-08,119210.0,119200.0,1.89723782]
[1752844279527,1e-08,119210.0,119200.0,0.8484731]
[1752844279746,1e-08,119210.0,119200.0,1.89723782]
[1752844280619,1e-08,119220.0,119210.0,0.61167682]
[1752844280828,1e-08,119220.0,119210.0,1.42030946]
[1752844282143,1e-08,119220.0,119210.0,1.42230946]
[1752844282550,1e-08,119220.0,119210.0,1.27682946]
[1752844282687,1e-08,119220.0,119210.0,1.42522946]
[1752844282904,1e-08,119220.0,119210.0,1.42922946]
[1752844283114,1e-08,119220.0,119210.0,1.17162946]
[1752844283517,1e-08,119220.0,119210.0,0.7906471]
[1752844283693,1e-08,119220.0,119210.0,1.31502946]
[1752844285249,1e-08,119220.0,119210.0,1.31478946]
[1752844285501,1e-08,119220.0,119210.0,0.7904071]
[1752844285629,1e-08,119220.0,119210.0,1.31478946]
[1752844285998,1e-08,119220.0,119210.0,1.30578946]
[1752844286203,0.03220001,119220.0,119210.0,1.39154908]
[1752844286422,0.03220001,119220.0,119210.0,1.30978946]
[1752844286636,1e-08,119220.0,119210.0,1.30978946]
[1752844287868,0.06467001,119220.0,119210.0,1.30978946]
[1752844288082,0.06467001,119220.0,119210.0,0.55653682]
[1752844288295,0.06467001,119220.0,119210.0,1.07885918]
[1752844289654,0.06762001,119220.0,119210.0,0.55447682]
[1752844289861,0.06762001,119220.0,119210.0,1.07885918]
[1752844291103,0.06762001,119220.0,119210.0,1.07585918]
[1752844291507,0.06762001,119220.0,119210.0,1.07785918]
[1752844291709,0.06762001,119220.0,119210.0,0.21347682]
[1752844291891,0.06762001,119220.0,119210.0,0.55347682]
[1752844292316,0.06762001,119220.0,119210.0,0.54947682]
[1752844292493,0.08439452,119220.0,119210.0,0.55247682]
[1752844292723,0.08439452,119220.0,119210.0,0.21247682]
[1752844292901,0.10116945,119220.0,119210.0,0.21247682]
[1752844293106,0.10116945,119220.0,119210.0,0.18954791]
[1752844293107,0.10955716,119220.0,119210.0,0.18954791]
[1752844293306,0.10955716,119220.0,119210.0,0.18654798]
[1752844293307,0.36153315,119220.0,119210.0,0.18654798]
[1752844293517,0.36153315,119220.0,119210.0,0.18431201]
[1752844293518,0.42072943,119220.0,119210.0,0.18431201]
[1752844293711,0.41234186,119220.0,119210.0,0.004]
[1752844293911,0.40395415,119220.0,119210.0,0.004]
[1752844294111,0.40395415,119220.0,119210.0,0.01854085]
[1752844294895,0.40395415,119220.0,119210.0,0.01654085]
[1752844295101,0.40395415,119220.0,119210.0,0.01554085]
[1752844295758,0.40395415,119220.0,119210.0,0.01454085]
[1752844296137,0.40695415,119220.0,119210.0,0.01454085]
[1752844296918,0.33937051,119220.0,119210.0,0.01454085]
[1752844298160,0.23795957,119210.0,119200.0,0.01459066]
[1752844298382,0.47164985,119210.0,119200.0,0.01459066]
[1752844299232,0.75784985,119210.0,119200.0,0.01459066]
[1752844299432,0.75884985,119210.0,119200.0,0.01459066]
[1752844299918,0.84460947,119210.0,119200.0,0.01459066]
[1752844300552,0.24637888,119190.0,119180.0,0.003]
[1752844300805,0.47687916,119190.0,119180.0,0.71669461]
[1752844301007,0.31202985,119190.0,119180.0,0.7334753]
[1752844301208,0.47982916,119190.0,119180.0,0.2105753]
[1752844301424,0.48821912,119190.0,119180.0,0.74801629]
[1752844301845,0.54754614,119190.0,119180.0,0.18540409]
[1752844302088,0.53915625,119190.0,119180.0,0.18540409]
[1752844302329,0.53915625,119190.0,119180.0,0.20218506]
[1752844302534,0.37974669,119190.0,119180.0,0.74801622]
[1752844302741,0.31302999,119190.0,119180.0,0.21896561]
[1752844302953,0.4808293,119190.0,119180.0,0.21057537]
[1752844304055,0.30463982,119190.0,119180.0,0.75640646]
[1752844304259,0.32141883,119190.0,119180.0,0.76479663]
[1752844304500,0.31302915,119190.0,119180.0,0.76479663]
[1752844304734,0.15333028,119190.0,119180.0,0.76479663]
[1752844304941,0.001,119190.0,119180.0,1.11005663]
[1752844305152,0.14436,119190.0,119180.0,1.11005663]
[1752844305787,0.29364028,119190.0,119180.0,0.56735578]
[1752844305970,0.30497961,119190.0,119180.0,0.76479663]
[1752844306174,0.29659028,119190.0,119180.0,0.76479663]
[1752844306584,0.15323028,119190.0,119180.0,0.76479663]
[1752844306796,0.29655028,119190.0,119180.0,0.76479663]
[1752844307022,0.29655028,119190.0,119180.0,0.75225403]
[1752844307243,0.29647028,119190.0,119180.0,0.75225403]
[1752844307461,0.29352028,119190.0,119180.0,0.75225403]
[1752844308075,0.29352028,119190.0,119180.0,0.22935578]
[1752844308290,0.29252028,119190.0,119180.0,0.75425403]
[1752844308915,0.29547028,119190.0,119180.0,0.75425403]
[1752844309357,0.29547028,119190.0,119180.0,0.22935578]
[1752844309591,0.31224908,119190.0,119180.0,0.22935578]
[1752844309800,0.30385961,119190.0,119180.0,0.22935578]
[1752844310550,0.29547028,119190.0,119180.0,0.22935578]
[1752844310761,0.79784267,119190.0,119180.0,0.20418506]
[1752844310960,0.80623249,119190.0,119180.0,0.21257544]
[1752844311367,0.7573896,119190.0,119180.0,0.0195907]
[1752844311574,0.74899978,119190.0,119180.0,0.02798136]
[1752844311978,0.74899978,119190.0,119180.0,0.02598136]
[1752844312242,0.74899978,119190.0,119180.0,0.20218534]
[1752844312935,0.74899978,119190.0,119180.0,0.20318534]
[1752844313179,0.8347594,119190.0,119180.0,0.20318534]
[1752844313442,0.8347594,119190.0,119180.0,0.21157586]
[1752844313672,0.74999978,119190.0,119180.0,0.20318534]
[1752844313949,0.74999978,119190.0,119180.0,0.0185907]
[1752844314108,0.74899978,119190.0,119180.0,0.0185907]
[1752844314826,0.74999978,119190.0,119180.0,0.0185907]
[1752844315032,0.24750972,119170.0,119160.0,0.003]
[1752844315252,1.28852844,119170.0,119160.0,0.00304992]
[1752844315483,0.76363019,119170.0,119160.0,0.00304992]
[1752844315722,0.76666019,119170.0,119160.0,0.00304992]
[1752844315973,0.85241981,119170.0,119160.0,0.00304992]
[1752844316191,0.79185919,119170.0,119160.0,0.00304992]
[1752844316862,0.79485919,119170.0,119160.0,0.00304992]
[1752844317533,0.65233919,119170.0,119160.0,0.17089147]
[1752844317759,0.79493919,119170.0,119160.0,0.17928347]
[1752844317986,0.76974019,119170.0,119160.0,0.17928347]
[1752844318189,0.78654617,119170.0,119160.0,0.00304992]
[1752844318412,0.76134917,119170.0,119160.0,0.1792834]
[1752844318566,0.76134917,119170.0,119160.0,0.18767554]
[1752844319184,0.30432109,119170.0,119160.0,0.21899976]
[1752844319447,0.32394554,119170.0,119160.0,0.21899976]
[1752844319946,0.31555445,119170.0,119160.0,0.21899976]
[1752844320194,0.36285397,119170.0,119160.0,0.22113976]
[1752844320419,0.54178839,119170.0,119160.0,0.21060832]
[1752844320641,0.54178839,119170.0,119160.0,0.21900018]
[1752844320868,0.54178839,119170.0,119160.0,0.2189999]
[1752844321083,0.32394589,119170.0,119160.0,0.22739113]
[1752844321310,0.32933719,119170.0,119160.0,0.22739113]
[1752844321529,0.30616357,119170.0,119160.0,0.22739113]
[1752844321741,0.31455466,119170.0,119160.0,0.22739113]
[1752844321972,0.33133726,119170.0,119160.0,0.22739113]
[1752844322172,0.32294589,119170.0,119160.0,0.22739113]
[1752844322378,0.32294589,119170.0,119160.0,0.21899955]
[1752844322582,0.54068846,119170.0,119160.0,0.19382425]
[1752844322785,0.54368846,119170.0,119160.0,0.20221611]
[1752844323011,0.82973865,119170.0,119160.0,0.2106079]
[1752844323226,0.81834777,119170.0,119160.0,0.19382425]
[1752844323547,0.82034777,119170.0,119160.0,0.19382425]
[1752844323780,0.81195668,119170.0,119160.0,0.18543232]
[1752844324216,0.66108545,119170.0,119160.0,0.01759077]
[1752844324458,0.80548545,119170.0,119160.0,0.01759077]
[1752844325722,0.75557035,119170.0,119160.0,0.01759077]
[1752844325937,0.75557035,119170.0,119160.0,0.19382439]
[1752844326199,0.75557035,119170.0,119160.0,0.21060811]
[1752844326419,0.61117035,119170.0,119160.0,0.21060811]
[1752844326637,0.75525035,119170.0,119160.0,0.21060811]
[1752844326854,0.75525035,119170.0,119160.0,0.20221632]
[1752844327094,0.84100997,119170.0,119160.0,0.20221632]
[1752844327322,0.84100997,119170.0,119160.0,0.19382439]
[1752844327762,0.84100997,119170.0,119160.0,0.20221639]
[1752844328870,0.55495978,119170.0,119160.0,0.20221639]
[1752844329090,0.55495978,119170.0,119160.0,0.03437484]
[1752844329315,0.55495978,119170.0,119160.0,0.20221639]
[1752844329545,0.55495978,119170.0,119160.0,0.01759077]
[1752844330868,0.55495978,119170.0,119160.0,0.19382432]
[1752844331113,0.55495978,119170.0,119160.0,0.01759077]
[1752844331336,0.47759153,119170.0,119160.0,0.19382432]
[1752844331778,0.47759153,119170.0,119160.0,0.20221625]
[1752844332076,0.47759153,119170.0,119160.0,0.01759077]
[1752844332338,0.50283215,119170.0,119160.0,0.01759077]
[1752844332554,0.47759153,119170.0,119160.0,0.01759077]
[1752844332778,0.47759153,119170.0,119160.0,0.18543232]
[1752844332999,0.47759153,119170.0,119160.0,0.20221625]
[1752844333479,0.47759153,119170.0,119160.0,0.19382432]
[1752844333930,0.47759153,119170.0,119160.0,0.18543232]
[1752844334149,0.47759153,119170.0,119160.0,0.19382439]
[1752844334571,0.53626026,119170.0,119160.0,0.01759077]
[1752844334805,0.82236026,119170.0,119160.0,0.01759077]
[1752844336716,0.84751778,119170.0,119160.0,0.01759077]
[1752844337165,1.38535082,119170.0,119160.0,0.00304992]
[1752844337395,0.84751778,119170.0,119160.0,0.00304992]
[1752844338663,1.38535082,119170.0,119160.0,0.00304992]
[1752844338953,0.84751778,119170.0,119160.0,0.00304992]
[1752844340557,0.78045768,119170.0,119160.0,0.00304992]
[1752844340962,0.80565368,119170.0,119160.0,0.00304992]
[1752844343265,0.99033368,119170.0,119160.0,0.00304992]
[1752844346320,0.99033368,119170.0,119160.0,0.17089147]
[1752844346530,0.99033368,119170.0,119160.0,0.18767554]
[1752844346952,1.0760933,119170.0,119160.0,0.17928354]
[1752844347185,1.0760933,119170.0,119160.0,0.00304992]
[1752844347653,1.0760933,119170.0,119160.0,0.01144199]
[1752844347861,1.0760933,119170.0,119160.0,0.00304992]
[1752844348994,0.60226789,119170.0,119160.0,0.26511611]
[1752844349218,0.75257884,119170.0,119160.0,0.75351087]
[1752844349444,0.75469884,119170.0,119160.0,0.22406941]
[1752844349660,0.72950284,119170.0,119160.0,0.22406941]
[1752844349882,0.73789386,119170.0,119160.0,0.22406941]
[1752844350107,0.735774,119170.0,119160.0,0.76190245]
[1752844350351,0.73577393,119170.0,119160.0,0.22406941]
[1752844350580,0.70209028,119170.0,119160.0,0.82270245]
[1752844351260,0.56029028,119170.0,119160.0,0.28486941]
[1752844351543,0.56029028,119170.0,119160.0,1.76764677]
[1752844351544,0.18868,119170.0,119160.0,1.76764677]
[1752844351769,0.3304,119170.0,119160.0,1.76764677]
[1752844352249,0.3304,119170.0,119160.0,0.62486941]
[1752844352474,0.3284,119170.0,119160.0,1.70053549]
[1752844352919,0.3264,119170.0,119160.0,1.70153549]
[1752844353347,0.3264,119170.0,119160.0,0.62986941]
[1752844353561,0.3264,119170.0,119160.0,1.70553549]
[1752844354697,0.3264,119170.0,119160.0,1.16770245]
[1752844355127,0.3264,119170.0,119160.0,0.62986941]
[1752844355391,0.34318168,119170.0,119160.0,1.16770245]
[1752844355592,0.34318161,119170.0,119160.0,1.16770245]
[1752844355808,0.33479073,119170.0,119160.0,1.16770245]
[1752844356465,0.34318161,119170.0,119160.0,1.16770245]
[1752844356720,0.49909097,119170.0,119160.0,0.19774526]
[1752844356926,0.49909097,119170.0,119160.0,0.19882432]
[1752844356927,0.66903844,119170.0,119160.0,0.19882432]
[1752844357135,0.69378771,119170.0,119160.0,0.20721618]
[1752844357353,0.68539683,119170.0,119160.0,0.20721618]
[1752844357568,0.69378813,119170.0,119160.0,0.22399962]
[1752844357785,0.69378813,119170.0,119160.0,0.21560797]
[1752844357996,0.69378813,119170.0,119160.0,0.22399969]
[1752844358212,0.69378813,119170.0,119160.0,0.21160797]
[1752844358438,0.68539711,119170.0,119160.0,0.20421625]
[1752844358642,0.67700588,119170.0,119160.0,0.19582432]
[1752844358868,0.66861458,119170.0,119160.0,0.19582432]
[1752844359071,0.66861458,119170.0,119160.0,0.19582439]
[1752844359298,0.66861458,119170.0,119160.0,0.01959077]
[1752844359520,0.69911458,119170.0,119160.0,0.01959077]
[1752844360171,0.64549775,119170.0,119160.0,0.01859077]
[1752844360385,0.64549775,119170.0,119160.0,0.02698277]
[1752844360585,0.64649775,119170.0,119160.0,0.01859077]
[1752844361069,0.64649775,119170.0,119160.0,0.02698284]
[1752844361275,0.64649775,119170.0,119160.0,0.01859077]
[1752844361509,0.73225737,119170.0,119160.0,0.01859077]
[1752844363256,0.64649775,119170.0,119160.0,0.01859077]
[1752844367239,0.93259775,119170.0,119160.0,0.01859077]
[1752844368523,0.93259775,119170.0,119160.0,0.00404992]
[1752844369387,0.93159775,119170.0,119160.0,0.00404992]
[1752844369885,0.93359775,119170.0,119160.0,0.00304992]
[1752844370089,1.02135737,119170.0,119160.0,0.00304992]
[1752844370719,0.21684071,119150.0,119140.0,0.01754085]
[1752844370927,0.47710099,119150.0,119140.0,0.01803856]
[1752844371125,0.41260099,119150.0,119140.0,0.02007856]
[1752844371331,0.41260099,119150.0,119140.0,0.02316856]
[1752844371753,0.41260099,119150.0,119140.0,0.03156204]
[1752844372128,0.41260099,119150.0,119140.0,0.03156197]
[1752844372337,0.41260099,119150.0,119140.0,0.1994317]
[1752844372784,0.44470099,119150.0,119140.0,0.1963417]
[1752844373009,0.42099377,119150.0,119140.0,0.21182504]
[1752844373247,0.42099377,119150.0,119140.0,0.2034317]
[1752844373484,0.48255092,119150.0,119140.0,0.02716856]
[1752844373696,0.48255092,119150.0,119140.0,0.03556204]
[1752844373918,0.48255092,119150.0,119140.0,0.21182518]
[1752844374149,0.41260134,119150.0,119140.0,0.22021852]
[1752844374421,0.41055099,119150.0,119140.0,0.23700499]
[1752844374657,0.4189437,119150.0,119140.0,0.22021852]
[1752844374827,0.4189437,119150.0,119140.0,0.22861179]
[1752844375498,0.48868827,119150.0,119140.0,0.21182518]
[1752844376125,0.76563835,119150.0,119140.0,0.22021852]
[1752844376345,0.76563835,119150.0,119140.0,0.22861179]
[1752844376767,0.76563835,119150.0,119140.0,0.22861151]
[1752844377036,0.76563835,119150.0,119140.0,0.21382504]
[1752844377245,0.76563835,119150.0,119140.0,0.22221831]
[1752844377355,0.76563835,119150.0,119140.0,0.21382504]
[1752844377553,0.76563835,119150.0,119140.0,0.2054317]
[1752844377770,0.76563835,119150.0,119140.0,0.03756204]
[1752844377981,0.76563835,119150.0,119140.0,0.20543177]
[1752844378189,0.76563835,119150.0,119140.0,0.21382511]
[1752844379057,0.76563835,119150.0,119140.0,0.21382518]
[1752844379280,0.76563835,119150.0,119140.0,0.20543177]
[1752844379721,0.76563835,119150.0,119140.0,0.21382518]
[1752844380014,0.76768835,119150.0,119140.0,0.21382518]
[1752844380227,0.76768835,119150.0,119140.0,0.22221845]
[1752844380431,0.77608113,119150.0,119140.0,0.22221852]
[1752844380644,0.77608113,119150.0,119140.0,0.23061179]
[1752844381025,0.57465493,119150.0,119140.0,0.56713839]
[1752844381438,0.57465493,119150.0,119140.0,0.02916856]
[1752844381671,0.50491036,119150.0,119140.0,0.56713839]
[1752844382234,0.50286036,119150.0,119140.0,0.09386856]
[1752844382786,0.50286036,119150.0,119140.0,0.63183839]
[1752844383661,0.36246036,119150.0,119140.0,0.63183839]
[1752844383873,0.50222036,119150.0,119140.0,0.63183839]
[1752844384309,0.5524424,119150.0,119140.0,0.63183839]
[1752844384524,0.5524424,119150.0,119140.0,0.56713839]
[1752844384953,0.4126824,119150.0,119140.0,0.56713839]
[1752844385160,0.5524424,119150.0,119140.0,0.02916856]
[1752844385374,0.4126824,119150.0,119140.0,0.56713839]
[1752844385598,0.5523224,119150.0,119140.0,0.56713839]
[1752844386276,0.33942232,119150.0,119140.0,0.00949771]
[1752844386492,0.33942232,119150.0,119120.0,0.003]
[1752844386493,0.065,119130.0,119120.0,0.003]
[1752844386704,0.87055011,119130.0,119120.0,0.003]
[1752844386944,0.90147423,119130.0,119120.0,0.003]
[1752844387179,0.97669638,119130.0,119120.0,0.003]
[1752844387386,1.52075621,119130.0,119120.0,0.003]
[1752844387599,0.92964011,119130.0,119120.0,0.003]
[1752844387812,0.83914011,119130.0,119120.0,0.003]
[1752844388909,0.84631526,119130.0,119120.0,0.003]
[1752844389127,0.70679526,119130.0,119120.0,0.003]
[1752844389340,0.84647526,119130.0,119120.0,0.003]
[1752844389560,0.85347526,119130.0,119120.0,0.003]
[1752844389809,0.93923488,119130.0,119120.0,0.003]
[1752844390021,0.93223488,119130.0,119120.0,0.003]
[1752844390236,0.97207596,119130.0,119120.0,0.003]
[1752844391934,0.43410613,119130.0,119120.0,0.003]
[1752844392157,0.97207596,119130.0,119120.0,0.003]
[1752844392640,0.97175596,119130.0,119120.0,0.003]
[1752844392849,0.17076651,119130.0,119120.0,0.003]
[1752844393065,0.31012651,119130.0,119120.0,0.003]
[1752844393292,0.28528543,119130.0,119120.0,0.003]
[1752844393516,0.28528543,119130.0,119080.0,0.003]
[1752844393517,0.0618,119100.0,119080.0,0.003]
[1752844393745,1.07912983,119090.0,119080.0,0.003]
[1752844393945,1.1360061,119090.0,119080.0,0.003]
[1752844394157,1.08285983,119090.0,119080.0,0.003]
[1752844394379,1.17177011,119090.0,119080.0,0.003]
[1752844394605,1.25752973,119090.0,119080.0,0.003]
[1752844394853,1.25752973,119090.0,119080.0,0.00304992]
[1752844395104,0.7195599,119090.0,119080.0,0.00304992]
[1752844395560,0.56827028,119090.0,119080.0,0.00304992]
[1752844395786,0.23025028,119090.0,119080.0,0.00304992]
[1752844396687,0.23325028,119090.0,119080.0,0.00304992]
[1752844397127,0.40119049,119090.0,119080.0,0.00304992]
[1752844397335,0.39819049,119090.0,119080.0,0.00304992]
[1752844397550,0.39819049,119090.0,119080.0,0.00604992]
[1752844397551,0.45800337,119090.0,119080.0,0.00604992]
[1752844398846,0.46200337,119090.0,119080.0,0.00604992]
[1752844399200,0.45800337,119090.0,119080.0,0.00604992]
[1752844399734,0.46000337,119090.0,119080.0,0.00604992]
[1752844401386,0.45996138,119090.0,119080.0,0.00604992]
[1752844402359,1.05054416,119090.0,119080.0,0.00604992]
[1752844404373,0.99073128,119090.0,119080.0,0.00604992]
[1752844404587,0.98899128,119090.0,119080.0,0.00604992]
[1752844405251,0.98899128,119090.0,119080.0,0.20434687]
[1752844405252,0.40656536,119090.0,119080.0,0.20434687]
[1752844405461,0.41496201,119090.0,119080.0,0.20434687]
[1752844405669,0.41496201,119090.0,119080.0,0.19594944]
[1752844405881,0.2470218,119090.0,119080.0,0.19594944]
[1752844406092,0.41496201,119090.0,119080.0,0.20434687]
[1752844406325,0.47252804,119090.0,119080.0,0.01119992]
[1752844406544,0.47252804,119090.0,119080.0,0.00604992]
[1752844408473,0.47252804,119090.0,119080.0,0.17400423]
[1752844408623,0.47252804,119090.0,119080.0,0.18240194]
[1752844408839,0.46413118,119090.0,119080.0,0.18240194]
[1752844409469,0.46413118,119090.0,119080.0,0.19079958]
[1752844409665,0.46413118,119090.0,119080.0,0.17400423]
[1752844409872,0.46413118,119090.0,119080.0,0.1824018]
[1752844410277,0.46413118,119090.0,119080.0,0.17400423]
[1752844410691,0.40854536,119090.0,119080.0,0.1959493]
[1752844411054,0.40854536,119090.0,119080.0,0.19594937]
[1752844411253,0.40854536,119090.0,119080.0,0.17915423]
[1752844411466,0.4001485,119090.0,119080.0,0.01119992]
[1752844411897,0.4001485,119090.0,119080.0,0.18755194]
[1752844412313,0.23862466,119090.0,119080.0,0.21274423]
[1752844412513,0.25597974,119090.0,119080.0,0.21274423]
[1752844412736,0.25597967,119090.0,119080.0,0.21274423]
[1752844412992,0.26437632,119090.0,119080.0,0.22728508]
[1752844413198,0.44071439,119090.0,119080.0,0.22728522]
[1752844413406,0.25598023,119090.0,119080.0,0.23568202]
[1752844414017,0.25597995,119090.0,119080.0,0.23568202]
[1752844414229,0.26437681,119090.0,119080.0,0.23568202]
[1752844414446,0.27277375,119090.0,119080.0,0.23568202]
[1752844414654,0.26437681,119090.0,119080.0,0.23568202]
[1752844415472,0.24758316,119090.0,119080.0,0.23568202]
[1752844415685,0.25597988,119090.0,119080.0,0.23568202]
[1752844416232,0.26437674,119090.0,119080.0,0.23568202]
[1752844416724,0.25597988,119090.0,119080.0,0.23568202]
[1752844416942,0.300051,119090.0,119080.0,0.23568202]
[1752844417179,0.30844786,119090.0,119080.0,0.23568202]
[1752844417412,0.300051,119090.0,119080.0,0.23568202]
[1752844417631,0.300451,119090.0,119080.0,0.23568202]
[1752844417888,0.25637988,119090.0,119080.0,0.23568202]
[1752844419025,0.09091028,119090.0,119080.0,0.23568202]
[1752844419258,0.09091028,119090.0,119080.0,0.29998202]
[1752844419480,0.22771028,119090.0,119080.0,0.29998202]
[1752844419913,0.22767028,119090.0,119080.0,0.29998202]
[1752844421102,0.08751028,119090.0,119080.0,0.29998202]
[1752844421330,0.22767028,119090.0,119080.0,0.29998202]
[1752844422028,0.26051285,119090.0,119080.0,0.29998202]
[1752844422457,0.24434316,119090.0,119080.0,0.29998202]
[1752844422997,0.23594665,119090.0,119080.0,0.63998202]
[1752844423283,0.49705724,119090.0,119080.0,0.00604992]
[1752844423492,1.07351835,119090.0,119080.0,0.00604992]
[1752844423673,1.07513835,119090.0,119080.0,0.00604992]
[1752844423902,1.16089797,119090.0,119080.0,0.00604992]
[1752844424331,0.63475519,119090.0,119080.0,0.00604992]
[1752844424540,1.18611397,119090.0,119080.0,0.00604992]
[1752844425587,1.27441397,119090.0,119080.0,0.00604992]
[1752844425798,1.18611397,119090.0,119080.0,0.00604992]
[1752844428494,1.18411397,119090.0,119080.0,0.00304992]
[1752844428810,1.12100269,119090.0,119080.0,0.00304992]
[1752844430494,0.59485991,119090.0,119080.0,0.00304992]
[1752844430709,1.12100269,119090.0,119080.0,0.00304992]
[1752844433259,1.17100269,119090.0,119080.0,0.00304992]
[1752844433632,1.51100269,119090.0,119080.0,0.00304992]
[1752844434952,2.06284001,119090.0,119080.0,0.00304992]
[1752844435164,2.06232001,119090.0,119080.0,0.00304992]
[1752844435364,1.92292001,119090.0,119080.0,0.00304992]
[1752844435594,2.06216001,119090.0,119080.0,0.00304992]
[1752844435797,0.98417991,119090.0,119080.0,0.00304992]
[1752844436010,2.06216001,119090.0,119080.0,0.00304992]
[1752844438393,2.11216001,119090.0,119080.0,1e-08]
[1752844438625,0.5779815,119060.0,119050.0,0.0004]
[1752844438846,1.60591839,119060.0,119050.0,0.00044993]
[1752844439277,1.6152579,119060.0,119050.0,0.00044993]
[1752844439504,1.07626785,119060.0,119050.0,0.00044993]
[1752844439688,1.6152579,119060.0,119050.0,0.00044993]
[1752844439893,1.6186579,119060.0,119050.0,0.00044993]
[1752844440299,1.6447498,119060.0,119050.0,0.00044993]
[1752844441089,1.63230018,119060.0,119050.0,0.00044993]
[1752844441517,1.60620828,119060.0,119050.0,0.00044993]
[1752844441719,1.63230018,119060.0,119050.0,0.00044993]
[1752844442101,1.63430018,119060.0,119050.0,0.00044993]
[1752844442489,1.63630018,119060.0,119050.0,0.00044993]
[1752844442890,1.61020828,119060.0,119050.0,0.00044993]
[1752844443094,1.63537059,119060.0,119050.0,0.00044993]
[1752844443556,1.66146249,119060.0,119050.0,0.00044993]
[1752844443963,1.63537059,119060.0,119050.0,0.00044993]
[1752844444174,1.68537059,119060.0,119050.0,0.00044993]
[1752844444380,1.71146249,119060.0,119050.0,0.00044993]
[1752844444601,1.68537059,119060.0,119050.0,0.00044993]
[1752844445674,1.71146249,119060.0,119050.0,0.00044993]
[1752844445916,1.68537059,119060.0,119050.0,0.00044993]
[1752844447256,0.77923691,119050.0,119040.0,0.0034]
[1752844447489,1.05603923,119050.0,119040.0,0.00344993]
[1752844448690,1.08326523,119050.0,119040.0,0.00344993]
[1752844450427,1.08426523,119050.0,119040.0,0.00344993]
[1752844450866,1.08418523,119050.0,119040.0,0.00344993]
[1752844452535,1.08418523,119050.0,119040.0,0.00335475]
[1752844452758,1.08388523,119050.0,119040.0,0.00335475]
[1752844453209,0.18715654,119040.0,119030.0,0.00313]
[1752844453425,0.44019536,119040.0,119030.0,0.0052837]
[1752844453906,0.18378766,119030.0,119020.0,0.00633]
[1752844454118,0.19417545,119020.0,119010.0,0.2731102]
[1752844454332,0.42708746,119020.0,119010.0,0.26520469]
[1752844454545,0.41028463,119020.0,119010.0,0.06792679]
[1752844454753,0.45971385,119020.0,119010.0,0.06792679]
[1752844454985,0.48494085,119020.0,119010.0,0.06792679]
[1752844455413,0.48494085,119020.0,119010.0,0.07192679]
[1752844455624,0.48400915,119020.0,119010.0,0.07192679]
[1752844456309,0.48400915,119020.0,119010.0,0.07505679]
[1752844456539,0.48400915,119020.0,119010.0,0.00702679]
[1752844456540,0.49396915,119020.0,119010.0,0.00702679]
[1752844456768,0.49396915,119020.0,119000.0,0.00334354]
[1752844456769,0.17732882,119010.0,119000.0,0.00334354]